[Event "FIDE WSTC Open 50 2025"]
[Site "Prague"]
[Date "2025.02.17"]
[Round "1.6"]
[White "Mazanek, Kamil"]
[Black "Wells, Peter K"]
[Result "0-1"]
[Annotator "TA"]
[ECO "B22"]
[WhiteElo "2099"]
[BlackElo "2358"]
[PlyCount "88"]
[EventDate "2025.02.17"]
[EventType "team-tourn"]
[EventCountry "CZE"]
[SourceTitle "playchess.com"]
[Source "ChessBase"]
[SourceQuality "1"]
[TimeControl "40/5400+30:1800+30"]

{[%evp 15,88,0,0,0,0,0,3,12,30,19,25,6,8,-20,-16,-20,-11,-17,-20,-23,0,-35,-40,-36,-34,-43,-33,-131,-138,-135,-128,-141,-142,-148,-120,-124,-126,-133,-128,-129,-103,-106,-104,-104,-94,-148,-148,-170,-165,-170,-172,-174,-168,-207,-207,-308,-222,-212,-205,-248,-248,-404,-357,-699,-698,-716,-706,-726,-694,-731,-708,-727,-727,-747,-721]} 1. e4 {[%emt 0:00:07][%cal Be2e4,Be4e5][%mdl 32]} c5 {[%emt 0:00:14]} 2. c3 {[%emt 0:00:04]} Nf6 {[%emt 0:00:16][%cal Bg8f6,Bf6d5,Bd5b4][%mdl 32]} 3. e5 {[%emt 0:00:01]} Nd5 {[%emt 0:00:09]} 4. d4 {[%emt 0:00:01]} cxd4 {[%emt 0:00:31]} 5. Nf3 {[%emt 0:00:01]} d6 {[%emt 0:04:02]} 6. cxd4 {[%emt 0:00:33]} dxe5 {[%emt 0:06:11]} 7. dxe5 {[%emt 0:01:37]} Nc6 {[%emt 0:12:17]} 8. Bc4 {[%emt 0:05:29]} Ndb4 {[%emt 0:00:35]} 9. Qxd8+ {[%emt 0:18:02] 9.0-0 is setting a new trend. B22: Sicilian: 2 c3.} Nxd8 {[%emt 0:00:07]} 10. Na3 {[%emt 0:03:20] Repels Nc2+} a6 {[%emt 0:06:22] Prevents Nb5. Black is weak on the dark squares} 11. Bd2 {[%emt 0:03:50] The position is equal.} e6 {[%emt 0:02:57]} 12. O-O {[%emt 0:10:42]} Ndc6 {[%emt 0:06:02]} 13. Rfd1 {[%emt 0:08:22]} Bd7 {[%emt 0:03:43]} 14. Be3 $146 {[%emt 0:06:27]} (14. Rac1 Be7 15. Be3 Rc8 16. Bb3 Na5 17. Rxc8+ Bxc8 18. Ba4+ b5 19. Nxb5 axb5 20. Bxb5+ {0-1 Lucchi,L (2084)-Czerw,D (2373) EU-ch Blitz Katowice 2022 (7)}) 14... b5 {[%emt 0:07:46]} 15. Bb3 {[%emt 0:01:25]} Na5 {[%emt 0:08:04]} 16. Rac1 {[%emt 0:05:32]} Nxb3 {[%emt 0:03:43]} 17. axb3 {[%emt 0:01:52]} Nd5 {[%emt 0:07:45]} 18. Bc5 {[%emt 0:01:11]} Bxc5 {[%emt 0:01:24]} 19. Rxc5 {[%emt 0:00:01]} Ke7 {[%emt 0:00:09]} 20. Nd4 {[%emt 0:05:27]} Rhc8 {[%emt 0:04:29]} 21. Rdc1 {[%emt 0:00:45] Black keeps a firm grip on the game.} (21. Rc2 $15) 21... Rxc5 $17 {[%emt 0:03:18]} 22. Rxc5 {[%emt 0:00:00]} Nf4 {[%emt 0:00:19]} 23. Nac2 {[%emt 0:06:42]} Nd3 {[%emt 0:01:33][%csl LRb2,LRc5] Inhibits Nb4.} 24. Rc7 {[%emt 0:04:50]} Kd8 {[%emt 0:00:58]} 25. Rc3 {[%emt 0:00:39]} Nxe5 {[%emt 0:00:44]} 26. f4 {[%emt 0:00:28]} Ng6 {[%emt 0:00:56]} 27. g3 {[%emt 0:00:15]} Ne7 {[%emt 0:04:26]} 28. Nb4 {[%emt 0:01:44]} a5 {[%emt 0:03:04]} 29. Nd3 {[%emt 0:01:00]} Nd5 {[%emt 0:04:25]} 30. Rc5 {[%emt 0:00:49]} (30. Rc1 $142) 30... Rc8 {[%emt 0:01:43]} 31. Rxc8+ {[%emt 0:04:14]} Kxc8 {[%emt 0:00:05][%mdl 4096] Endgame KBN-KNN. Black is a pawn up.} 32. Ne5 {[%emt 0:00:06]} Be8 {[%emt 0:00:38]} 33. Kf2 {[%emt 0:03:57]} Kc7 {[%emt 0:00:47]} 34. Ke2 {[%emt 0:00:30]} Kd6 {[%emt 0:01:02]} 35. Kd3 {[%emt 0:02:34]} (35. Nd3 $142) 35... f6 {[%emt 0:04:45]} 36. Nef3 {[%emt 0:00:50]} Nb4+ {[%emt 0:01:59]} 37. Kc3 {[%emt 0:01:14]} Kd5 {[%emt 0:00:33] Strongly threatening ...Na2+.} 38. Nd2 $2 {[%emt 0:00:26] [#]} (38. f5 e5 39. Ne6) 38... e5 {[%emt 0:00:32]} 39. Nf5 {[%emt 0:01:01]} (39. Ne2) 39... Na2+ $19 {[%emt 0:00:08] Black is clearly winning.} 40. Kd3 {[%emt 0:00:37]} Bg6 {[%emt 0:00:14]} 41. g4 {[%emt 0:30:44]} exf4 {[%emt 0:30:28]} 42. Ke2 {[%emt 0:02:32]} Bxf5 {[%emt 0:01:26]} 43. gxf5 {[%emt 0:00:07]} Ke5 {[%emt 0:00:35]} 44. Nf3+ {[%emt 0:00:44]} Ke4 {[%emt 0:00:29] Weighted Error Value: White=0.37/Black=0.08 (flawless)   Mistake:       	White=5     	---        Inaccurate:     	White=2     	---        OK:         	White=10    	Black=12     Best:        	---       	Black=3} 0-1

[Event "FIDE WSTC Open 50 2025"]
[Site "Prague"]
[Date "2025.02.17"]
[Round "1.7"]
[White "Hebden, Mark L"]
[Black "Nudcenko, Karel"]
[Result "1-0"]
[Annotator "TA"]
[ECO "A45"]
[WhiteElo "2363"]
[BlackElo "1990"]
[PlyCount "79"]
[EventDate "2025.02.17"]
[EventType "team-tourn"]
[EventCountry "CZE"]
[SourceTitle "playchess.com"]
[Source "ChessBase"]
[SourceQuality "1"]
[TimeControl "40/5400+30:1800+30"]

{[%evp 19,79,22,24,22,27,18,25,22,56,48,49,51,78,65,84,66,91,93,78,65,117,85,96,91,87,91,82,88,103,92,99,83,107,107,102,109,92,108,189,171,370,364,364,363,347,329,300,298,298,288,302,256,250,170,204,195,205,195,924,960,858,840]} 1. d4 {[%emt 0:00:15]} Nf6 {[%emt 0:00:28]} 2. Bg5 {[%emt 0:00:14]} d5 {[%emt 0:01:25]} 3. e3 {[%emt 0:02:08]} Nbd7 {[%emt 0:03:00]} 4. Nf3 {[%emt 0:03:02]} e6 {[%emt 0:14:44]} 5. Nbd2 {[%emt 0:01:37]} Be7 {[%emt 0:00:12]} 6. Bd3 {[%emt 0:00:46]} c5 {[%emt 0:01:40]} 7. c3 {[%emt 0:00:16]} b6 {[%emt 0:02:45]} 8. Ne5 {[%emt 0:05:10]} Nxe5 {[%emt 0:01:20]} 9. dxe5 {[%emt 0:00:10]} Nd7 {[%emt 0:01:28]} 10. Bxe7 {[%emt 0:02:04]} Qxe7 {[%emt 0:00:13]} 11. f4 {[%emt 0:00:13] D03: 1 d4 d5 2 Nf3 Nf6 3 Bg5, including Torre Attack with early ...d5.} Bb7 {[%emt 0:04:21]} 12. Qe2 {[%emt 0:01:43]} f6 {[%emt 0:01:56]} 13. exf6 {[%emt 0:00:16] White has an edge.} gxf6 {[%emt 0:02:54]} 14. e4 {[%emt 0:00:29]} O-O-O {[%emt 0:02:19]} 15. exd5 {[%emt 0:02:27]} Bxd5 {[%emt 0:02:01]} 16. O-O-O {[%emt 0:01:17]} Rhg8 {[%emt 0:08:08]} 17. Be4 {[%emt 0:00:40] [#]} Nf8 {[%emt 0:03:13]} 18. Bxd5 {[%emt 0:00:57]} Rxd5 {[%emt 0:00:50]} 19. Nc4 $146 {[%emt 0:00:45]} (19. Rhe1 Rg7 20. g3 Qd8 21. c4 Rd4 22. Nf3 Rxd1+ 23. Rxd1 Rd7 24. Re1 Qc7 25. Qe4 {½-½ Hebden,M (2460)-Bremner,A (2223) BCF-chT1c 1718 (4NCL) Promotion pool 2017 (11.43)}) 19... Rg7 {[%emt 0:06:43]} (19... Ng6 $1 $14) 20. g3 {[%emt 0:03:36][%cal Of4f5]} Qd8 {[%emt 0:01:19]} 21. Ne3 {[%emt 0:10:48]} Rxd1+ {[%emt 0:01:07]} 22. Rxd1 {[%emt 0:00:13]} ({Reject} 22. Nxd1 Qd5 23. Re1 (23. Qa6+ Kd8 $11) 23... Qxa2 $14) 22... Rd7 {[%emt 0:00:37]} 23. Re1 {[%emt 0:03:58]} Rd6 {[%emt 0:05:09]} 24. Qh5 {[%emt 0:02:54]} Qd7 {[%emt 0:08:02]} 25. Qh4 {[%emt 0:05:54]} Qd8 {[%emt 0:01:09]} 26. f5 {[%emt 0:01:14]} exf5 {[%emt 0:05:13]} 27. Nxf5 {[%emt 0:01:21]} Rd7 {[%emt 0:00:21]} 28. Qe4 $36 {[%emt 0:03:54][%mdl 2048] White has strong initiative. White is much more active.} Kb8 {[%emt 0:00:56] Dodges Qa8+} (28... Kc7 $16) 29. Ne7 $18 {[%emt 0:00:45] [#]} Kc7 {[%emt 0:05:50]} (29... f5 {was necessary.}) 30. Qc6+ {[%emt 0:03:41]} Kb8 {[%emt 0:00:28][%cal Bc7b8,Bb8b7,Bb7a6][%mdl 32]} 31. Qxf6 {[%emt 0:00:19]} Kb7 {[%emt 0:02:58] Against Nc6} 32. Qc6+ {[%emt 0:01:47]} Ka6 {[%emt 0:02:42]} 33. Qe4 {[%emt 0:00:25]} Rd6 {[%emt 0:04:11]} 34. a4 {[%emt 0:00:52]} (34. Qc4+ Kb7 35. Qe4+ Ka6 36. Qe2+ Kb7 37. Qf3+ Ka6) 34... Ng6 {[%emt 0:01:25]} 35. Nxg6 {[%emt 0:03:52]} hxg6 {[%emt 0:00:21]} 36. h4 {[%emt 0:01:05] and Qc4+ should not be overlooked} Qf6 {[%emt 0:02:11]} 37. Qe2+ {[%emt 0:03:28]} Kb7 {[%emt 0:00:43]} 38. Rf1 {[%emt 0:00:34]} Qg7 {[%emt 0:01:28]} (38... Qe6 39. Qxe6 Rxe6) 39. Qe4+ {[%emt 0:00:15]} Kc7 {[%emt 0:02:15]} 40. Qa8 {[%emt 0:01:14] Weighted Error Value: White=0.06 (flawless) /Black=0.47  Mistake:       	---       	Black=4      Inaccurate:     	White=1     	Black=2      OK:         	White=16    	Black=9      Best:        	White=3     	Black=2} 1-0

[Event "FIDE WSTC Open 50 2025"]
[Site "Prague"]
[Date "2025.02.17"]
[Round "1.8"]
[White "Koblasa, Josef"]
[Black "Emms, John M"]
[Result "0-1"]
[Annotator "TA"]
[ECO "A13"]
[WhiteElo "1906"]
[BlackElo "2409"]
[PlyCount "74"]
[EventDate "2025.02.17"]
[EventType "team-tourn"]
[EventCountry "CZE"]
[SourceTitle "playchess.com"]
[Source "ChessBase"]
[SourceQuality "1"]
[TimeControl "40/5400+30:1800+30"]

{[%evp 9,74,-11,-11,-9,-14,-31,-20,-22,-24,-18,-8,-8,-6,-26,-31,-35,-35,-39,-42,-75,-60,-158,-162,-156,-150,-155,-155,-310,-307,-305,-311,-311,-313,-387,-392,-411,-413,-449,-427,-458,-466,-475,-460,-428,-403,-517,-520,-503,-489,-631,-617,-612,-606,-619,-625,-621,-634,-607,-604,-817,-810,-809,-791,-1923,-1169,-29971,-9689]} 1. c4 {[%emt 0:00:04]} e6 {[%emt 0:00:27]} 2. Nc3 {[%emt 0:00:06]} d5 {[%emt 0:00:17]} 3. e3 {[%emt 0:00:40]} Nf6 {[%emt 0:00:31]} 4. d4 {[%emt 0:00:33]} a6 {[%emt 0:00:57]} 5. a3 {[%emt 0:01:58]} dxc4 {[%emt 0:00:53]} 6. Bxc4 {[%emt 0:00:41] D35: Queen's Gambit Declined: Exchange Variation.} c5 {[%emt 0:00:37]} 7. dxc5 {[%emt 0:03:25] And now Qxd8+ would win.} Qxd1+ {[%emt 0:00:36]} 8. Nxd1 {[%emt 0:04:25] The position is equal.} Bxc5 {[%emt 0:00:10]} 9. b4 {[%emt 0:00:12]} Bd6 {[%emt 0:01:43]} 10. Nf3 {[%emt 0:02:36]} b5 {[%emt 0:06:12]} 11. Bb3 $146 {[%emt 0:03:04]} (11. Be2 Bb7 12. O-O Nbd7 13. Nb2 Ne4 14. Nd4 Rc8 15. Nd3 Nb6 16. Bb2 Ke7 17. Rac1 {0-1 Schmidt,R-Ortz,J DESC O2011 Rd01 Gr.10 email (1)}) 11... Bb7 {[%emt 0:03:15]} 12. Bb2 {[%emt 0:04:04]} Nbd7 {[%emt 0:00:48]} 13. O-O {[%emt 0:05:22]} Ke7 {[%emt 0:05:17]} 14. Re1 {[%emt 0:10:45][%cal Oe3e4]} Rac8 {[%emt 0:05:33]} 15. Rc1 {[%emt 0:04:56] Black continues to play with concentration.} (15. Re2 $15) 15... Rxc1 $17 {[%emt 0:11:28]} 16. Bxc1 {[%emt 0:00:06] [#]} Bxf3 $1 {[%emt 0:04:03]} 17. gxf3 {[%emt 0:00:24] [#]} Ne5 $1 {[%emt 0:00:18] Black is more active.} 18. Kg2 {[%emt 0:10:12]} (18. Re2 $17) 18... Nd3 $1 $19 {[%emt 0:01:05][%csl LRc1,LRe1]} 19. Bd2 {[%emt 0:00:34]} Nxe1+ {[%emt 0:00:33]} 20. Bxe1 {[%emt 0:00:09]} Rc8 {[%emt 0:04:19]} 21. Bc3 {[%emt 0:04:33]} Nd5 {[%emt 0:06:07]} 22. Bb2 {[%emt 0:01:18]} g5 {[%emt 0:03:40]} 23. h3 {[%emt 0:03:51]} f6 {[%emt 0:04:48]} 24. Kf1 {[%emt 0:01:18]} Be5 {[%emt 0:02:37]} 25. Bxe5 {[%emt 0:15:58]} fxe5 {[%emt 0:00:07][%mdl 4096] Endgame KRN-KBN} 26. Ke1 {[%emt 0:01:46]} Nc3 {[%emt 0:05:28]} 27. Nb2 {[%emt 0:05:05]} e4 {[%emt 0:05:02]} 28. fxe4 {[%emt 0:08:24]} Nxe4 {[%emt 0:00:20] aiming for ...Rc3.} 29. a4 {[%emt 0:05:07]} Rc1+ {[%emt 0:06:45]} 30. Nd1 {[%emt 0:00:30]} bxa4 {[%emt 0:02:29]} 31. Bxa4 {[%emt 0:00:31]} Rc4 {[%emt 0:00:44]} 32. f3 {[%emt 0:00:37]} Rxb4 {[%emt 0:01:11]} 33. Bc2 {[%emt 0:00:28]} Nf6 {[%emt 0:00:49]} 34. Bd3 {[%emt 0:00:19]} a5 {[%emt 0:00:13]} 35. Nc3 {[%emt 0:00:48]} Nd5 {[%emt 0:05:01]} 36. Nd1 {[%emt 0:01:19]} a4 {[%emt 0:01:25] ( -> ...a3)} 37. e4 {[%emt 0:00:56] [#]} a3 $1 {[%emt 0:01:22] Weighted Error Value: White=0.75/Black=0.01 (flawless)   Mistake:       	White=2     	---        Inaccurate:     	White=1     	---        OK:         	White=5     	Black=12     Best:        	---       	Black=2      Strong:       	---       	Black=2} 0-1

[Event "FIDE WSTC Open 50 2025"]
[Site "Prague"]
[Date "2025.02.17"]
[Round "1.9"]
[White "Lauterbach, Ingrid"]
[Black "Hjartarson, Johann"]
[Result "0-1"]
[Annotator "TA"]
[ECO "B40"]
[WhiteElo "2003"]
[BlackElo "2464"]
[PlyCount "78"]
[EventDate "2025.02.17"]
[EventType "team-tourn"]
[EventCountry "CZE"]
[SourceTitle "playchess.com"]
[Source "ChessBase"]
[SourceQuality "1"]
[TimeControl "40/5400+30:1800+30"]

{[%evp 19,78,-22,-20,-26,0,-25,-26,-15,-4,-15,-6,-13,-1,-39,-39,-59,-37,-50,-49,-56,-50,-64,-37,-63,-67,-60,-69,-67,-56,-85,-82,-84,-66,-58,-51,-58,-42,-62,-59,-56,-53,-67,-38,-58,-60,-77,-74,-138,-140,-162,-53,-52,-54,-121,-95,-383,-380,-388,-388,-367,-345]} 1. e4 {[%emt 0:00:02]} c5 {[%emt 0:00:13]} 2. Nf3 {[%emt 0:00:10]} e6 {[%emt 0:00:07]} 3. g3 {[%emt 0:01:21]} Nc6 {[%emt 0:00:17]} 4. Bg2 {[%emt 0:01:05]} Nf6 {[%emt 0:00:21]} 5. d3 {[%emt 0:01:43]} d5 {[%emt 0:03:36]} 6. Nbd2 {[%emt 0:00:12]} Be7 {[%emt 0:00:12]} 7. O-O {[%emt 0:01:22]} b6 {[%emt 0:00:38]} 8. Re1 {[%emt 0:01:04]} Bb7 {[%emt 0:00:39]} 9. c3 {[%emt 0:07:59]} h6 {[%emt 0:01:49]} 10. Qc2 {[%emt 0:10:10]} O-O {[%emt 0:02:17]} 11. exd5 {[%emt 0:06:09] C00: French: Unusual White 2nd moves.} Nxd5 $146 {[%emt 0:00:22]} ({Predecessor:} 11... exd5) 12. Nf1 {[%emt 0:01:14][%cal Bd2f1,Bf1e3,Be3c4][%mdl 32]} Qc7 {[%emt 0:03:33]} 13. Ne3 {[%emt 0:00:59] Black has an edge.} Nf6 {[%emt 0:01:03]} 14. Nc4 {[%emt 0:05:07]} Rad8 {[%emt 0:00:18]} 15. Bf4 {[%emt 0:07:13]} Qc8 {[%emt 0:00:34]} 16. h3 {[%emt 0:04:41]} b5 {[%emt 0:07:53]} 17. Nce5 {[%emt 0:02:15]} Qa8 {[%emt 0:01:07]} 18. Nxc6 {[%emt 0:04:42]} Bxc6 {[%emt 0:00:08]} 19. Qe2 {[%emt 0:00:33]} Rfe8 {[%emt 0:10:07]} 20. Red1 {[%emt 0:05:55]} Bf8 {[%emt 0:02:35][%cal Oe6e5]} 21. Ne1 {[%emt 0:03:43]} e5 {[%emt 0:05:17]} 22. Bxc6 {[%emt 0:02:43]} Qxc6 {[%emt 0:00:08]} 23. Be3 {[%emt 0:02:27]} (23. Bxe5 $2 Nd7 24. f4 f6 $19) 23... a6 {[%emt 0:00:57] Black is more active.} 24. Qf3 {[%emt 0:08:04]} Qe6 {[%emt 0:00:37]} 25. Kh2 {[%emt 0:01:15]} Rd7 {[%emt 0:03:55]} 26. a4 {[%emt 0:04:47]} Red8 {[%emt 0:04:04]} 27. axb5 {[%emt 0:02:07]} axb5 {[%emt 0:00:07]} 28. Qe2 {[%emt 0:01:23]} Nd5 {[%emt 0:03:19][%cal Bf6d5,Bd5c7,Bc7e6][%mdl 32]} 29. Bd2 {[%emt 0:01:56]} Nc7 {[%emt 0:06:42]} 30. Be3 {[%emt 0:02:19]} Qd5 {[%emt 0:13:33]} 31. f3 {[%emt 0:01:10]} Ne6 {[%emt 0:02:04]} 32. Kg2 {[%emt 0:02:31]} h5 {[%emt 0:02:50][%cal Oh5h4]} 33. Bf2 {[%emt 0:04:07] [#]} (33. h4) 33... h4 $1 $17 {[%emt 0:01:55][%mdl 512]} 34. Qe4 {[%emt 0:01:48]} (34. Kg1 hxg3) 34... c4 {[%emt 0:01:20]} (34... hxg3 $19 35. Bxg3 f6 36. Qxd5 Rxd5) 35. Qxh4 $15 {[%emt 0:01:26]} cxd3 {[%emt 0:05:19] White must now prevent ...d2.} 36. Rxd3 {[%emt 0:01:23] [#]} ({White should try} 36. Rd2 $1 $15) 36... Qb3 $1 $36 {[%emt 0:00:47][%csl LRb2,LRd3][%mdl 2048] White is under strong pressure.} 37. Rxd7 {[%emt 0:00:31][%mdl 8192]} (37. Rad1 $17 Qxd1 38. Rxd1 Rxd1 39. b4) 37... Rxd7 $19 {[%emt 0:00:08] Black is winning.} 38. Qe4 {[%emt 0:00:49] [#]} Rd2 {[%emt 0:01:24]} ({Not} 38... Qxb2 39. Rb1 Qd2 (39... Qxc3 40. Rxb5 Rd2 41. Rd5 $17) 40. Kf1 $17 (40. Rxb5 Bc5 $17)) 39. Nd3 {[%emt 0:00:48][%cal Oa1f1]} Qc2 {[%emt 0:00:28] Weighted Error Value: White=0.27 (precise) /Black=0.11 (very precise)   Loses game:     	White=1     	---        Mistake:       	White=2     	Black=1      Inaccurate:     	White=3     	Black=3      OK:         	White=10    	Black=11     Best:        	---       	Black=1      Strong:       	---       	Black=1} 0-1

[Event "FIDE WSTC Open 50 2025"]
[Site "Prague"]
[Date "2025.02.17"]
[Round "1.10"]
[White "Petursson, Margeir"]
[Black "Jackson, Sheila"]
[Result "1-0"]
[Annotator "TA"]
[ECO "A11"]
[WhiteElo "2403"]
[BlackElo "2009"]
[PlyCount "85"]
[EventDate "2025.02.17"]
[EventType "team-tourn"]
[EventCountry "CZE"]
[SourceTitle "playchess.com"]
[Source "ChessBase"]
[SourceQuality "1"]
[TimeControl "40/5400+30:1800+30"]

{[%evp 23,85,37,36,25,25,8,53,37,51,13,6,0,0,-51,0,-32,0,-30,66,66,78,50,55,46,81,83,93,81,98,89,94,102,103,79,72,68,110,98,135,146,127,108,86,0,72,16,89,106,214,91,108,57,54,0,73,-17,304,305,291,286,764,473,494,499]} 1. c4 {[%emt 0:00:07]} c6 {[%emt 0:00:14]} 2. Nf3 {[%emt 0:01:19]} Nf6 {[%emt 0:03:10]} 3. Nc3 {[%emt 0:01:19]} d5 {[%emt 0:00:50]} 4. e3 {[%emt 0:01:06]} e6 {[%emt 0:07:28]} 5. b3 {[%emt 0:00:51]} Bd6 {[%emt 0:01:47]} 6. Bb2 {[%emt 0:01:29]} O-O {[%emt 0:02:57]} 7. Be2 {[%emt 0:05:20]} Qe7 {[%emt 0:05:06]} 8. O-O {[%emt 0:05:10]} Nbd7 {[%emt 0:01:35]} 9. Qc2 {[%emt 0:05:07]} a6 {[%emt 0:01:57]} 10. d4 {[%emt 0:03:23]} e5 {[%emt 0:11:44]} 11. dxe5 {[%emt 0:03:35]} Nxe5 {[%emt 0:01:45]} 12. cxd5 cxd5 {[%emt 0:05:45]} 13. Rad1 {[%emt 0:03:20]} Be6 {[%emt 0:02:03]} 14. Nd4 {[%emt 0:09:19]} g6 {[%emt 0:00:57] Against Nf5} 15. Qd2 {[%emt 0:11:11] White is slightly better.} Rad8 {[%emt 0:04:34]} 16. Nxe6 {[%emt 0:08:04]} fxe6 {[%emt 0:00:37]} 17. Qd4 {[%emt 0:02:32]} Nc6 {[%emt 0:06:33]} 18. Qa4 {[%emt 0:02:36]} (18. Qh4 $11) 18... Rc8 {[%emt 0:00:51]} (18... g5 $15) 19. a3 {[%emt 0:04:03]} Nd7 {[%emt 0:05:34][%cal Od5d4] And now ...d4! would win.} 20. Qg4 {[%emt 0:03:05] White is weak on the dark squares} Rf5 {[%emt 0:02:53]} (20... Rfe8 $11) 21. Qh3 $14 {[%emt 0:03:40]} Rf7 {[%emt 0:05:08][%cal Od6e5]} (21... Bxa3 $2 22. Bxa3 Qxa3 23. e4 $18) 22. Bg4 $1 {[%emt 0:04:21]} Re8 {[%emt 0:00:33] [#]} 23. Rxd5 $1 {[%emt 0:01:11]} Nf6 {[%emt 0:01:55]} (23... exd5 $6 24. Nxd5 Bxh2+ 25. Qxh2 $16) (23... h5 24. Bxh5) 24. Rdd1 {[%emt 0:02:08]} Ne5 {[%emt 0:06:59]} 25. Be2 $36 {[%emt 0:00:42][%mdl 2048] White is really pushing. This pair of bishops is nice.} Bxa3 {[%emt 0:00:22]} 26. Ba1 {[%emt 0:00:09]} Ned7 {[%emt 0:01:34]} 27. Bd3 {[%emt 0:05:27]} Nc5 {[%emt 0:01:08]} 28. Bc2 {[%emt 0:00:23]} Ncd7 {[%emt 0:04:44][%cal Bc5d7,Bd7e5,Be5c4][%mdl 32]} 29. Ne2 {[%emt 0:01:15]} (29. Ne4 Rff8 30. Ng5 Rc8 $16) 29... Bd6 {[%emt 0:03:00]} 30. Nd4 {[%emt 0:02:11] White is more active.} (30. Nf4 {feels hotter.} Nf8 31. Qh4 Rc8 32. Bb1) 30... Ne5 {[%emt 0:02:56] [#]} 31. b4 $1 {[%emt 0:00:59][%mdl 512] Threatens to win with Bb3.} b5 {[%emt 0:01:57][%cal Oe5c4]} 32. Rb1 {[%emt 0:04:01]} Nc4 {[%emt 0:00:57][%cal Oc4d2]} 33. Bb3 {[%emt 0:02:00]} (33. Nc6 Qc7 34. Nd4 Nd2 $14) ({White should try} 33. Rfd1 $16) 33... Nd5 {[%emt 0:02:38]} (33... Ne4 $1 $11) 34. Rfd1 {[%emt 0:01:28]} (34. Nf3 $16) 34... Nxb4 {[%emt 0:01:13]} (34... Bxb4 $11 35. Rbc1 Qd6) 35. Qg4 $16 {[%emt 0:01:39]} Bc5 {[%emt 0:02:50]} (35... e5 $16) 36. h4 {[%emt 0:01:00]} (36. Bxc4 $1 $18 {and White stays clearly on top.} bxc4 37. Nf3) 36... Qf6 {[%emt 0:00:56] [#]} 37. Nf3 {[%emt 0:00:40]} (37. Qe2 $1 $16) 37... Qf5 $14 {[%emt 0:00:19]} 38. Qg3 {[%emt 0:01:30]} (38. Qxf5 $1 $14 Rxf5 39. Bxc4 bxc4 40. Rdc1) 38... Nd5 {[%emt 0:00:16]} (38... Bd6 $11 {remains equal.} 39. Qg5 Nd5) 39. Rbc1 {[%emt 0:01:20] [#]} (39. Bxc4 $16 bxc4 40. Ne5) 39... Bxe3 $2 {[%emt 0:00:16][%mdl 8192] Black cannot hold the game after this.} 40. fxe3 $18 {[%emt 0:00:33]} Ncxe3 {[%emt 0:00:23]} 41. Re1 {[%emt 0:30:55]} Ref8 $2 {[%emt 0:03:34]} (41... Qf4 42. Qf2 Nc4) 42. Qe5 {[%emt 0:00:00]} Qxe5 {[%emt 0:02:55]} 43. Nxe5 {[%emt 0:00:00] Weighted Error Value: White=0.39/Black=0.61  Loses game:     	---       	Black=1      Mistake:       	White=7     	Black=7      Inaccurate:     	White=4     	Black=5      OK:         	White=10    	Black=5      Best:        	White=1     	Black=4      Strong:       	White=1     	---        Brilliant:      	White=1     	---} ({Less strong is} 43. Bxe5 Nxg2 44. Kxg2 Rxf3 45. Bxd5 exd5 $16) 1-0